{"text_format":"1","workbook":"xlsx","n_sheets":4,"sheets":["FORMULARZ","WYNIK1","Arkusz4","WYNIK"],"not_rendered":{"charts":0,"images":1,"macros":1,"external_links":1,"defined_names":3,"comments":0,"pivot_tables":0},"unopened":[],"bounds":{"document_bytes":16777216,"sheet_cells":100000,"rows_first":2000,"rows_last":500,"rows_between":2000,"halvings":0,"cell_chars":16384,"cell_head_chars":4096},"cells_cut":0,"cells_raw":0,"read":"whole","date_system":"1900"}

{"sheet":"FORMULARZ","index":0,"n_rows":34,"n_cols":14,"rows_kept":34,"cut":false,"hidden":false,"merged":[[19,1,23,6],[19,7,23,7],[19,8,20,11],[19,12,19,13],[8,0,11,13],[13,9,13,12],[15,1,16,13],[18,1,18,6],[33,1,33,6],[30,1,30,6],[31,1,31,6],[32,1,32,6],[24,1,24,6],[25,1,25,6],[26,1,26,6],[27,1,27,6],[28,1,28,6],[29,1,29,6]]}
[]
[]
[]
[]
[]
[]
[]
[]
["Wprowadzenie:\nProgram umożliwia naliczenie opłaty produktowej za rok 2020. W celu wyliczenia opłaty należy wypełnić poniższy formularz.\nWprowadzone dane oraz wyliczona wysokość opłaty umieszczone zostaną w zakładce \"Wynik\".\n\nUWAGA: \nProgram nie uwzględnia wyliczenia opłaty w przypadku zorganizowanej przez podmiot sieci selektywnego zbierania (tj. kiedy wymagany poziom odzysku i recyklingu jest równy 100%).\n\nProgram pomaga w naliczeniu opłaty, ale nie zwalnia z obowiązku sporządzenia sprawozdania w Bazie danych o produktach \ni opakowaniach oraz o gospodarce odpadami (BDO)."]
[]
[]
[]
[]
[null,null,null,null,null,null,null,null,null,"UWAGA! Masę należy uzupełnić w tonach [Mg] !!!"]
[]
[null,"Formularz do wyliczenia opłaty produktowej - PRODUKTY"]
[]
[]
[null,1,null,null,null,null,null,2,3,4,5,6,7,8]
[null,null,null,null,null,null,null,"Symbol PKWiU","masa wprowadzonych na rynek produktów w tonach [Mg]:",null,null,null,"masa odpadów poddanych w tonach [Mg]:"]
[null,null,null,null,null,null,null,null,null,null,null,null,"ODZYSKOWI","RECYKLINGOWI"]
[null,null,null,null,null,null,null,null,"ogółem\nw 2019 r.","ogółem\nw 2020 r.","podlegających obowiązkowi odzysku i recyklingu","podlegających obowiązkowi recyklingu","poddanych w 2020 roku","poddanych w 2020 roku"]
[null,null,null,null,null,null,null,null,{"$f":"IF(SUM(I26,I27,I29,I30,I31,I32,I33,I34)=0,\"kolumna do wypełnienia\",\"\")","v":"kolumna do wypełnienia"},{"$f":"IF(SUM(J26,J27,J29,J30,J31,J32,J33,J34)=0,\"kolumna do wypełnienia\",\"\")","v":"kolumna do wypełnienia"},"kolumna wypełniana automatyczne","kolumna wypełniana automatyczne",{"$f":"IF(SUM(M26,M27,M29,M30,M31,M32,M33,M34)=0,\"kolumna do wypełnienia\",\"\")","v":"kolumna do wypełnienia"},{"$f":"IF(SUM(N26,N27,N29,N30,N31,N32,N33,N34)=0,\"kolumna do wypełnienia\",\"\")","v":"kolumna do wypełnienia"}]
[null,null,null,null,null,null,null,null,null,null,null,null,{"$f":"SUM(M26:M27,M29:M37)","v":0},{"$f":"SUM(N26:N27,N29:N37)","v":0}]
[null,"oleje smarowe:\n(kg)",null,null,null,null,null,null,"ogółem","ogółem","podlegających obowiązkowi odzysku","podlegających obowiązkowi recyklingu","poddanych w 2021 roku","poddanych w 2021 roku"]
[1,"Oleje smarowe otrzymane z ropy naftowej, preparaty z ciężkich frakcji, gdzie indziej niesklasyfikowane,\nz wyłączeniem:\nOleje smarowe do przeprowadzania przemian chemicznych innych niż proces specyficzny\nParafina ciekła\nMieszanki olejowe do obróbki metali, oleje zapobiegające przyleganiu do form, oleje antykorozyjne\nOleje smarowe pozostałe oraz pozostałe oleje, jeżeli są przeznaczone do produkcji olejów smarowych lub preparatów smarowych",null,null,null,null,null,"19.20.29.0\nz wyłączeniem:\n19.20.29.0\n19.20.29.0\n19.20.29.0\n19.20.29.0",null,null,{"$f":"IF(OR(J26=0,J26=\"\"),\"\",IF(I26=0,J26,I26))","v":""},{"$f":"IF(OR(J26=0,J26=\"\"),\"\",IF(I26=0,J26,I26))","v":""}]
[2,"Preparaty smarowe, dodatki, środki zapobiegające zamarzaniu,\nz wyłączeniem:\nPreparaty smarowe - wyłącznie smary plastyczne\nŚrodki przeciwstukowe, dodatki do olejów mineralnych i produkty podobne\nŚrodki zapobiegające zamarzaniu i gotowe płyny przeciwoblodzeniowe",null,null,null,null,null,"20.59.4\nz wyłączeniem:\n20.59.41.0\n20.59.42.0\n20.59.43.0",null,null,{"$f":"IF(OR(J27=0,J27=\"\"),\"\",IF(I27=0,J27,I27))","v":""},{"$f":"IF(OR(J27=0,J27=\"\"),\"\",IF(I27=0,J27,I27))","v":""}]
[null,"opony:\n(kg)",null,null,null,null,null,null,"ogółem","ogółem","podlegających obowiązkowi odzysku","podlegających obowiązkowi recyklingu","poddanych w 2021 roku","poddanych w 2021 roku"]
[3,"opony pneumatyczne z gumy, nowe, w rodzaju stosowanych w samochodach osobowych",null,null,null,null,null,"22.11.11.0",null,null,{"$f":"IF(OR(J29=0,J29=\"\"),\"\",IF(I29=0,J29,I29))","v":""},{"$f":"IF(OR(J29=0,J29=\"\"),\"\",IF(I29=0,J29,I29))","v":""}]
[4,"opony pneumatyczne z gumy, nowe, w rodzaju stosowanych w motocyklach i rowerach",null,null,null,null,null,"22.11.12.0",null,null,{"$f":"IF(OR(J30=0,J30=\"\"),\"\",IF(I30=0,J30,I30))","v":""},{"$f":"IF(OR(J30=0,J30=\"\"),\"\",IF(I30=0,J30,I30))","v":""}]
[5,"opony pneumatyczne z gumy, nowe, w rodzaju stosowanych w autobusach, samochodach ciężarowych i samolotach",null,null,null,null,null,"22.11.13.0",null,null,"",""]
[6,"opony pneumatyczne bieżnikowane z gumy",null,null,null,null,null,"22.11.20.0",null,null,"",""]
[7,"opony pneumatyczne z gumy, nowe, w rodzaju stosowanych w urządzeniach i maszynach rolniczych, pozostale nowe opony pneumatyczne z gumy",null,null,null,null,null,"22.11.14.0",null,null,"",""]
[8,"opony pneumatyczne, używane",null,null,null,null,null,"38.11.53.0",null,null,"",""]

{"sheet":"WYNIK1","index":1,"n_rows":22,"n_cols":32,"rows_kept":22,"cut":false,"hidden":true,"merged":[[2,25,2,26],[7,29,7,30],[8,29,8,30],[7,31,7,32],[8,31,8,32],[6,29,6,30],[6,31,6,32],[4,31,4,32],[5,29,5,30],[5,31,5,32],[3,29,3,32],[4,29,4,30],[0,2,1,28],[7,1,7,7],[7,8,7,9],[7,27,7,28],[8,27,8,28],[8,1,8,7],[8,8,8,9],[6,1,6,7],[6,8,6,9],[6,27,6,28],[5,1,5,7],[5,8,5,9],[5,27,5,28],[2,20,2,21],[2,22,2,23],[2,27,2,32],[21,2,21,19],[19,6,19,9],[16,27,16,28],[16,29,16,30],[16,31,16,32],[17,4,17,7],[17,8,17,9],[14,1,14,7],[14,8,14,9],[14,27,14,28],[14,29,14,30],[14,31,14,32],[15,1,15,7],[15,8,15,9],[15,27,15,28],[15,29,15,30],[15,31,15,32],[12,1,12,7],[12,8,12,9],[12,27,12,28],[12,29,12,30],[12,31,12,32],[13,1,13,7],[13,8,13,9],[13,27,13,28],[13,29,13,30],[13,31,13,32],[11,29,11,30],[11,31,11,32],[10,1,10,7],[10,8,10,9],[10,27,10,28],[10,29,10,30],[10,31,10,32],[9,1,9,7],[9,8,9,9],[11,1,11,7],[11,8,11,9],[11,27,11,28],[3,20,5,20],[3,21,5,21],[3,22,5,22],[3,23,5,23],[3,27,4,28],[2,19,4,19],[2,0,4,0],[2,1,4,7],[2,8,4,9],[2,12,4,12],[2,15,4,15]]}
[null,null,"KALKULATOR OPŁATY PRODUKTOWEJ ZA ROK 2020 - PRODUKTY"]
[]
["Lp.","Rodzaj produktu, z którego powstał odpad",null,null,null,null,null,null,"Symbol PKWiU",null,"Masa 2020 [kg]","masa 2020 tony","Masa produktów wprowadzonych na rynek w 2020 r. w tonach [Mg]:","Masa 2021 [kg]","Masa 2021 tony","Masa produktów wprowadzonych na rynek w 2021 r. w tonach [Mg]:","Masa stanowiąca podstawę [kg]","Masa podstawa w tonach zaokr.","Masa w tonach","Masa wprowadzonych na rynek produktów stanowiących podstawę do obliczenia w tonach [Mg]:","Wymagany poziom [%]:",null,"Osiągnięty poziom [%]:",null,"stawki","poziom wymagany-poziom odsiągnięty",null,"Wysokość naleznej opłaty produktowej w zł:"]
[null,null,null,null,null,null,null,null,null,null,null,null,null,null,null,null,null,null,null,null,"odzysku","recyklingu","odzysku","recyklingu",null,"odzysk","recykling","ogółem",null,"z tego dla:"]
[null,null,null,null,null,null,null,null,null,null,null,null,null,null,null,null,null,null,null,null,null,null,null,null,null,null,null,null,null,"odzysku",null,"recyklingu"]
[0,1,null,null,null,null,null,null,2,null,null,null,null,null,null,null,null,null,null,null,null,null,null,null,null,null,null,3,null,4,null,5]
[null,"oleje smarowe: "]
[1,"Oleje smarowe otrzymane z ropy naftowej, preparaty z ciężkich frakcji, gdzie indziej niesklasyfikowane,\nz wyłączeniem:\nOleje smarowe do przeprowadzania przemian chemicznych innych niż proces specyficzny\nParafina ciekła\nMieszanki olejowe do obróbki metali, oleje zapobiegające przyleganiu do form, oleje antykorozyjne\nOleje smarowe pozostałe oraz pozostałe oleje, jeżeli są przeznaczone do produkcji olejów smarowych lub preparatów smarowych",null,null,null,null,null,null,"19.20.29.0\nz wyłączeniem:\n19.20.29.0\n19.20.29.0\n19.20.29.0\n19.20.29.0",null,{"$f":"L8*1000","v":0},{"$f":"ROUND(FORMULARZ!I26,4)","v":0},{"$f":"IF(L8=0,\"\",L8)","v":""},{"$f":"O8*1000","v":0},{"$f":"ROUND(FORMULARZ!J26,4)","v":0},{"$f":"IF(O8=0,\"\",O8)","v":""},{"$f":"IF(OR(S8=0,S8=\"\"),0,S8*1000)","v":0},{"$f":"IF(FORMULARZ!K26=\"\",0,ROUND(FORMULARZ!K26,4))","v":0},{"$f":"FORMULARZ!K26","v":""},{"$f":"IF(R8=0,0,R8)","v":0},50,35,{"$f":"IF(OR(Q8=\"\",Q8=0),\"\",ROUND(((FORMULARZ!M26*1000)/Q8)*100,2))","v":""},{"$f":"IF(OR(Q8=\"\",Q8=0),\"\",ROUND((FORMULARZ!N26*1000/Q8)*100,2))","v":""},2.1,{"$f":"IF(W8=\"\",\"\",IF(W8=Arkusz4!$B$3,\"błąd\",(U8-W8)/100))","v":""},{"$f":"IF(X8=\"\",\"\",IF(X8=Arkusz4!$B$4,\"błąd\",(V8-X8)/100))","v":""},{"$f":"IF(AND(AD8=\"\",AF8=\"\"),\"\",IF(AND(AD8=0,AF8=0),0,ROUND(SUM(AD8:AG8),2)))","v":""},null,{"$f":"IF(Z8=\"\",\"\",IF(W8>=U8,0,ROUND($Q8*Z8*$Y8,2)))","v":""},null,{"$f":"IF(AA8=\"\",\"\",IF(X8>=V8,0,ROUND($Q8*AA8*$Y8,2)))","v":""}]
[2,"Preparaty smarowe, dodatki, środki zapobiegające zamarzaniu,\nz wyłączeniem:\nPreparaty smarowe - wyłącznie smary plastyczne\nŚrodki przeciwstukowe, dodatki do olejów mineralnych i produkty podobne\nŚrodki zapobiegające zamarzaniu i gotowe płyny przeciwoblodzeniowe",null,null,null,null,null,null,"20.59.4\nz wyłączeniem:\n20.59.41.0\n20.59.42.0\n20.59.43.0",null,{"$f":"L9*1000","v":0},{"$f":"ROUND(FORMULARZ!I27,4)","v":0},{"$f":"IF(L9=0,\"\",L9)","v":""},{"$f":"FORMULARZ!J27","v":0},{"$f":"ROUND(FORMULARZ!J27,4)","v":0},{"$f":"IF(O9=0,\"\",O9)","v":""},{"$f":"IF(OR(S9=0,S9=\"\"),0,S9*1000)","v":0},{"$f":"IF(FORMULARZ!K27=\"\",0,ROUND(FORMULARZ!K27,4))","v":0},{"$f":"FORMULARZ!K27","v":""},{"$f":"IF(R9=0,0,R9)","v":0},50,35,{"$f":"IF(OR(Q9=\"\",Q9=0),\"\",ROUND(((FORMULARZ!M27*1000)/Q9)*100,2))","v":""},{"$f":"IF(OR(Q9=\"\",Q9=0),\"\",ROUND((FORMULARZ!N27*1000/Q9)*100,2))","v":""},2.1,{"$f":"IF(W9=\"\",\"\",IF(W9=Arkusz4!$B$3,\"błąd\",(U9-W9)/100))","v":""},{"$f":"IF(X9=\"\",\"\",IF(X9=Arkusz4!$B$4,\"błąd\",(V9-X9)/100))","v":""},{"$f":"IF(AND(AD9=\"\",AF9=\"\"),\"\",IF(AND(AD9=0,AF9=0),0,ROUND(SUM(AD9:AG9),2)))","v":""},null,{"$f":"IF(Z9=\"\",\"\",IF(W9>=U9,0,ROUND($Q9*Z9*$Y9,2)))","v":""},null,{"$f":"IF(AA9=\"\",\"\",IF(X9>=V9,0,ROUND($Q9*AA9*$Y9,2)))","v":""}]
[null,"opony:"]
[3,"opony pneumatyczne z gumy, nowe, w rodzaju stosowanych w samochodach osobowych",null,null,null,null,null,null,"22.11.11.0",null,{"$f":"L11*1000","v":0},{"$f":"ROUND(FORMULARZ!I29,4)","v":0},{"$f":"IF(L11=0,\"\",L11)","v":""},{"$f":"O11*1000","v":0},{"$f":"ROUND(FORMULARZ!J29,4)","v":0},{"$f":"IF(O11=0,\"\",O11)","v":""},{"$f":"IF(OR(S11=0,S11=\"\"),0,S11*1000)","v":0},{"$f":"IF(FORMULARZ!K29=\"\",0,ROUND(FORMULARZ!K29,4))","v":0},{"$f":"FORMULARZ!K29","v":""},{"$f":"IF(R11=0,0,R11)","v":0},75,15,{"$f":"IF(OR(Q11=\"\",Q11=0),\"\",IF((FORMULARZ!M29*1000/Q11)*100>100,Arkusz4!$B$3,ROUND((FORMULARZ!M29*1000/Q11)*100,2)))","v":""},{"$f":"IF(OR(Q11=\"\",Q11=0),\"\",ROUND((FORMULARZ!N29*1000/Q11)*100,2))","v":""},2.2000000000000002,{"$f":"IF(W11=\"\",\"\",IF(W11=Arkusz4!$B$3,\"błąd\",(U11-W11)/100))","v":""},{"$f":"IF(X11=\"\",\"\",IF(X11=Arkusz4!$B$4,\"błąd\",(V11-X11)/100))","v":""},"",null,"",null,{"$f":"IF(AA11=\"\",\"\",IF(X11>=V11,0,ROUND($Q11*AA11*$Y11,2)))","v":""}]
[4,"opony pneumatyczne z gumy, nowe, w rodzaju stosowanych w motocyklach i rowerach",null,null,null,null,null,null,"22.11.12.0",null,{"$f":"L12*1000","v":0},{"$f":"ROUND(FORMULARZ!I30,4)","v":0},{"$f":"IF(L12=0,\"\",L12)","v":""},{"$f":"O12*1000","v":0},{"$f":"ROUND(FORMULARZ!J30,4)","v":0},{"$f":"IF(O12=0,\"\",O12)","v":""},{"$f":"IF(OR(S12=0,S12=\"\"),0,S12*1000)","v":0},{"$f":"IF(FORMULARZ!K30=\"\",0,ROUND(FORMULARZ!K30,4))","v":0},{"$f":"FORMULARZ!K30","v":""},{"$f":"IF(R12=0,0,R12)","v":0},75,15,{"$f":"IF(OR(Q12=\"\",Q12=0),\"\",IF((FORMULARZ!M30*1000/Q12)*100>100,Arkusz4!$B$3,ROUND((FORMULARZ!M30*1000/Q12)*100,2)))","v":""},{"$f":"IF(OR(Q12=\"\",Q12=0),\"\",ROUND((FORMULARZ!N30*1000/Q12)*100,2))","v":""},2.2000000000000002,{"$f":"IF(W12=\"\",\"\",IF(W12=Arkusz4!$B$3,\"błąd\",(U12-W12)/100))","v":""},{"$f":"IF(X12=\"\",\"\",IF(X12=Arkusz4!$B$4,\"błąd\",(V12-X12)/100))","v":""},"",null,"",null,{"$f":"IF(AA12=\"\",\"\",IF(X12>=V12,0,ROUND($Q12*AA12*$Y12,2)))","v":""}]
[5,"opony pneumatyczne z gumy, nowe, w rodzaju stosowanych w autobusach, samochodach ciężarowych i samolotach",null,null,null,null,null,null,"22.11.13.0",null,0,{"$f":"ROUND(FORMULARZ!I31,4)","v":0},"",0,{"$f":"ROUND(FORMULARZ!J31,4)","v":0},"",0,{"$f":"IF(FORMULARZ!K31=\"\",0,ROUND(FORMULARZ!K31,4))","v":0},{"$f":"FORMULARZ!K31","v":""},0,75,15,{"$f":"IF(OR(Q13=\"\",Q13=0),\"\",IF((FORMULARZ!M31*1000/Q13)*100>100,Arkusz4!$B$3,ROUND((FORMULARZ!M31*1000/Q13)*100,2)))","v":""},{"$f":"IF(OR(Q13=\"\",Q13=0),\"\",ROUND((FORMULARZ!N31*1000/Q13)*100,2))","v":""},2.2000000000000002,{"$f":"IF(W13=\"\",\"\",IF(W13=Arkusz4!$B$3,\"błąd\",(U13-W13)/100))","v":""},{"$f":"IF(X13=\"\",\"\",IF(X13=Arkusz4!$B$4,\"błąd\",(V13-X13)/100))","v":""},"",null,"",null,""]
[6,"opony pneumatyczne bieżnikowane z gumy",null,null,null,null,null,null,"22.11.13.0",null,0,{"$f":"ROUND(FORMULARZ!I32,4)","v":0},"",0,{"$f":"ROUND(FORMULARZ!J32,4)","v":0},"",0,{"$f":"IF(FORMULARZ!K32=\"\",0,ROUND(FORMULARZ!K32,4))","v":0},{"$f":"FORMULARZ!K32","v":""},0,75,15,{"$f":"IF(OR(Q14=\"\",Q14=0),\"\",IF((FORMULARZ!M32*1000/Q14)*100>100,Arkusz4!$B$3,ROUND((FORMULARZ!M32*1000/Q14)*100,2)))","v":""},{"$f":"IF(OR(Q14=\"\",Q14=0),\"\",ROUND((FORMULARZ!N32*1000/Q14)*100,2))","v":""},2.2000000000000002,{"$f":"IF(W14=\"\",\"\",IF(W14=Arkusz4!$B$3,\"błąd\",(U14-W14)/100))","v":""},{"$f":"IF(X14=\"\",\"\",IF(X14=Arkusz4!$B$4,\"błąd\",(V14-X14)/100))","v":""},"",null,"",null,""]
[7,"opony pneumatyczne z gumy, nowe, w rodzaju stosowanych w urządzeniach i maszynach rolniczych, pozostale nowe opony pneumatyczne z gumy",null,null,null,null,null,null,"22.11.14.0",null,0,{"$f":"ROUND(FORMULARZ!I33,4)","v":0},"",0,{"$f":"ROUND(FORMULARZ!J33,4)","v":0},"",0,{"$f":"IF(FORMULARZ!K33=\"\",0,ROUND(FORMULARZ!K33,4))","v":0},{"$f":"FORMULARZ!K33","v":""},0,75,15,{"$f":"IF(OR(Q15=\"\",Q15=0),\"\",IF((FORMULARZ!M33*1000/Q15)*100>100,Arkusz4!$B$3,ROUND((FORMULARZ!M33*1000/Q15)*100,2)))","v":""},{"$f":"IF(OR(Q15=\"\",Q15=0),\"\",ROUND((FORMULARZ!N33*1000/Q15)*100,2))","v":""},2.2000000000000002,{"$f":"IF(W15=\"\",\"\",IF(W15=Arkusz4!$B$3,\"błąd\",(U15-W15)/100))","v":""},{"$f":"IF(X15=\"\",\"\",IF(X15=Arkusz4!$B$4,\"błąd\",(V15-X15)/100))","v":""},"",null,"",null,""]
[8,"opony pneumatyczne, używane",null,null,null,null,null,null,"38.11.53.0",null,0,{"$f":"ROUND(FORMULARZ!I34,4)","v":0},"",0,{"$f":"ROUND(FORMULARZ!J34,4)","v":0},"",0,{"$f":"IF(FORMULARZ!K34=\"\",0,ROUND(FORMULARZ!K34,4))","v":0},{"$f":"FORMULARZ!K34","v":""},0,75,15,{"$f":"IF(OR(Q16=\"\",Q16=0),\"\",IF((FORMULARZ!M34*1000/Q16)*100>100,Arkusz4!$B$3,ROUND((FORMULARZ!M34*1000/Q16)*100,2)))","v":""},{"$f":"IF(OR(Q16=\"\",Q16=0),\"\",ROUND((FORMULARZ!N34*1000/Q16)*100,2))","v":""},4.2,{"$f":"IF(W16=\"\",\"\",IF(W16=Arkusz4!$B$3,\"błąd\",(U16-W16)/100))","v":""},{"$f":"IF(X16=\"\",\"\",IF(X16=Arkusz4!$B$4,\"błąd\",(V16-X16)/100))","v":""},"",null,"",null,""]
[null,null,null,null,null,null,null,null,null,null,null,null,null,null,null,null,null,null,null,null,null,null,null,"Razem:",null,null,null,{"$f":"IF(SUM(AB8,AB9,AB11,AB12,AB13,AB14,AB15,AB16,)=0,\"\",ROUND(SUM(AB8,AB9,AB11,AB12,AB13,AB14,AB15,AB16,),2))","v":""},null,{"$f":"IF(SUM(AD8,AD9,AD11,AD12,AD13,AD14,AD15,AD16,)=0,\"\",ROUND(SUM(AD8,AD9,AD11,AD12,AD13,AD14,AD15,AD16),2))","v":""},null,{"$f":"IF(SUM(AF8,AF9,AF11,AF12,AF13,AF14,AF15,AF16,)=0,\"\",ROUND(SUM(AF8,AF9,AF11,AF12,AF13,AF14,AF15,AF16,),2))","v":""}]
[]
[]
[null,null,null,null,null,null,"Łączna opłata produktowa:",null,null,null,null,null,{"$f":"IF(AB17=\"\",0,ROUND(AB17,0))","v":0},null,null,"zł"]
[]
[null,null,{"$f":"IF(M20=\"\",\"\",IF(M20<100,\"Nie wnosi się opłaty produktowej, której wysokość nie przekracza 100 zł (art. 12 ust. 5 ustawy).\",\"\"))","v":"Nie wnosi się opłaty produktowej, której wysokość nie przekracza 100 zł (art. 12 ust. 5 ustawy)."}]

{"sheet":"Arkusz4","index":2,"n_rows":4,"n_cols":2,"rows_kept":4,"cut":false,"hidden":true,"merged":[]}
["Nie wnosi się opłaty produktowej, której wysokość nie przekracza 100 zł (art.12 ust. 5 ustawy)."]
[]
[null,"błąd- poziom recyklingu nie może być większy niż poziom odzysku"]
[null,"błąd- poziom recyklingu nie może wynosic więcej niż 100%"]

{"sheet":"WYNIK","index":3,"n_rows":359,"n_cols":13,"rows_kept":359,"cut":false,"hidden":false,"merged":[[332,2,332,4],[334,2,334,4],[344,2,344,4],[356,2,356,10],[356,11,356,12],[358,2,358,12],[338,2,338,4],[338,6,338,8],[340,2,340,4],[340,6,340,8],[342,2,342,4],[354,2,354,4],[352,2,352,4],[348,2,348,4],[348,6,348,8],[350,2,350,4],[350,6,350,8],[300,2,300,4],[300,6,300,8],[302,2,302,4],[304,2,304,4],[306,2,306,10],[314,2,314,4],[316,2,316,10],[318,2,318,4],[318,6,318,8],[320,2,320,4],[320,6,320,8],[308,2,308,4],[308,6,308,8],[310,2,310,4],[310,6,310,8],[312,2,312,4],[330,2,330,4],[330,6,330,8],[328,2,328,4],[328,6,328,8],[280,2,280,4],[280,6,280,8],[282,2,282,4],[284,2,284,4],[346,2,346,10],[272,2,272,12],[274,2,274,12],[276,2,276,10],[278,2,278,4],[278,6,278,8],[286,2,286,10],[288,2,288,4],[288,6,288,8],[290,2,290,4],[290,6,290,8],[292,2,292,4],[294,2,294,4],[296,2,296,10],[298,2,298,4],[298,6,298,8],[336,2,336,10],[322,2,322,4],[324,2,324,4],[326,2,326,10],[265,2,265,4],[265,6,265,8],[267,2,267,4],[267,6,267,8],[269,2,269,4],[269,6,269,8],[259,2,259,4],[259,6,259,8],[261,2,261,4],[261,6,261,8],[263,2,263,4],[263,6,263,8],[253,2,253,10],[255,2,255,4],[255,6,255,8],[257,2,257,4],[257,6,257,8],[247,2,247,10],[249,2,249,4],[249,6,249,8],[251,2,251,4],[251,6,251,8],[239,2,239,10],[241,2,241,10],[243,2,243,4],[243,6,243,8],[245,2,245,4],[245,6,245,8],[233,2,233,4],[233,6,233,8],[235,2,235,4],[235,6,235,8],[237,2,237,4],[237,6,237,8],[227,2,227,4],[227,6,227,8],[229,2,229,4],[229,6,229,8],[231,2,231,4],[231,6,231,8],[221,2,221,10],[223,2,223,4],[223,6,223,8],[225,2,225,4],[225,6,225,8],[215,2,215,10],[217,2,217,4],[217,6,217,8],[219,2,219,4],[219,6,219,8],[206,2,206,10],[209,2,209,10],[211,2,211,4],[211,6,211,8],[213,2,213,4],[213,6,213,8],[200,2,200,4],[200,6,200,8],[202,2,202,4],[202,6,202,8],[204,2,204,4],[204,6,204,8],[194,2,194,4],[194,6,194,8],[196,2,196,4],[196,6,196,8],[198,2,198,4],[198,6,198,8],[188,2,188,10],[190,2,190,4],[190,6,190,8],[192,2,192,4],[192,6,192,8],[182,2,182,10],[184,2,184,4],[184,6,184,8],[186,2,186,4],[186,6,186,8],[173,2,173,10],[176,2,176,10],[178,2,178,4],[178,6,178,8],[180,2,180,4],[180,6,180,8],[167,2,167,4],[167,6,167,8],[169,2,169,4],[169,6,169,8],[171,2,171,4],[171,6,171,8],[161,2,161,4],[161,6,161,8],[163,2,163,4],[163,6,163,8],[165,2,165,4],[165,6,165,8],[155,2,155,10],[157,2,157,4],[157,6,157,8],[159,2,159,4],[159,6,159,8],[149,2,149,10],[151,2,151,4],[151,6,151,8],[153,2,153,4],[153,6,153,8],[140,2,140,10],[143,2,143,10],[145,2,145,4],[145,6,145,8],[147,2,147,4],[147,6,147,8],[134,2,134,4],[134,6,134,8],[136,2,136,4],[136,6,136,8],[138,2,138,4],[138,6,138,8],[128,2,128,4],[128,6,128,8],[130,2,130,4],[130,6,130,8],[132,2,132,4],[132,6,132,8],[122,2,122,10],[124,2,124,4],[124,6,124,8],[126,2,126,4],[126,6,126,8],[116,2,116,10],[118,2,118,4],[118,6,118,8],[120,2,120,4],[120,6,120,8],[107,2,107,10],[110,2,110,10],[112,2,112,4],[112,6,112,8],[114,2,114,4],[114,6,114,8],[101,2,101,4],[101,6,101,8],[103,2,103,4],[103,6,103,8],[105,2,105,4],[105,6,105,8],[95,2,95,4],[95,6,95,8],[97,2,97,4],[97,6,97,8],[99,2,99,4],[99,6,99,8],[89,2,89,10],[91,2,91,4],[91,6,91,8],[93,2,93,4],[93,6,93,8],[83,2,83,10],[85,2,85,4],[85,6,85,8],[87,2,87,4],[87,6,87,8],[74,2,74,10],[77,2,77,10],[79,2,79,4],[79,6,79,8],[81,2,81,4],[81,6,81,8],[68,2,68,4],[68,6,68,8],[70,2,70,4],[70,6,70,8],[72,2,72,4],[72,6,72,8],[62,2,62,4],[62,6,62,8],[64,2,64,4],[64,6,64,8],[66,2,66,4],[66,6,66,8],[56,2,56,10],[58,2,58,4],[58,6,58,8],[60,2,60,4],[60,6,60,8],[50,2,50,10],[52,2,52,4],[52,6,52,8],[54,2,54,4],[54,6,54,8],[41,2,41,10],[44,2,44,10],[46,2,46,4],[46,6,46,8],[48,2,48,4],[48,6,48,8],[19,2,19,4],[19,6,19,8],[0,2,0,12],[2,2,2,12],[4,2,4,12],[6,2,6,12],[8,2,8,10],[11,2,11,10],[13,2,13,4],[15,2,15,4],[13,6,13,8],[15,6,15,8],[17,2,17,10],[29,2,29,4],[29,6,29,8],[31,2,31,4],[31,6,31,8],[21,2,21,4],[21,6,21,8],[23,2,23,10],[25,2,25,4],[25,6,25,8],[27,2,27,4],[27,6,27,8],[39,2,39,4],[39,6,39,8],[33,2,33,4],[33,6,33,8],[35,2,35,4],[35,6,35,8],[37,2,37,4],[37,6,37,8]]}
[null,null,"KALKULATOR OPŁATY PRODUKTOWEJ ZA ROK 2020 - PRODUKTY"]
[]
[null,null,"WYPEŁNIJ TABELE PODŚWIETLONE NA ZIELONO"]
[]
[null,null,"DZIAŁ III TABELA 1. INFORMACJA O PRODUKTACH I ZAGOSPODAROWANIU ODPADÓW POUŻYTKOWYCH"]
[]
[null,null,"Rodzaj produktu, z którego powstał odpad"]
[]
[null,null,"1. OLEJE SMAROWE OTRZYMANE Z ROPY NAFTOWEJ, PREPARATY Z CIĘŻKICH FRAKCJI, GDZIE INDZIEJ NIESKLASYFIKOWANE",null,null,null,null,null,null,null,null,null,{"$f":"IF(SUM(C16,G16)=0,\"NIE\",\"TAK\")","v":"NIE"}]
[]
[]
[null,null,"Masa wprowadzonych na terytorium kraju produktów ogółem w tonach [Mg]:"]
[]
[null,null,"w danym roku kalendarzowym:",null,null,null,"w roku poprzedzającym dany rok kalendarzowy:"]
[]
[null,null,{"$f":"IF(OR(WYNIK1!$P$8=0,WYNIK1!$P$8=\"\"),0,WYNIK1!$P$8)","v":0},null,null,null,{"$f":"IF(OR(WYNIK1!$M$8=0,WYNIK1!$M$8=\"\"),0,WYNIK1!$M$8)","v":0}]
[]
[null,null,"Masa wprowadzonych na terytorium kraju produktów podlegających obowiązkowi odzysku w tonach [Mg]:"]
[]
[null,null,"w danym roku kalendarzowym:",null,null,null,"w roku poprzedzającym dany rok kalendarzowy:"]
[]
[null,null,{"$f":"IF(OR(WYNIK1!$P$8=0,WYNIK1!$P$8=\"\"),0,WYNIK1!$P$8)","v":0},null,null,null,{"$f":"IF(OR(WYNIK1!$M$8=0,WYNIK1!$M$8=\"\"),0,WYNIK1!$M$8)","v":0}]
[]
[null,null,"Masa wprowadzonych na terytorium kraju produktów podlegających obowiązkowi recyklingu w tonach [Mg]:"]
[]
[null,null,"w danym roku kalendarzowym:",null,null,null,"w roku poprzedzającym dany rok kalendarzowy:"]
[]
[null,null,{"$f":"IF(OR(WYNIK1!$P$8=0,WYNIK1!$P$8=\"\"),0,WYNIK1!$P$8)","v":0},null,null,null,{"$f":"IF(OR(WYNIK1!$M$8=0,WYNIK1!$M$8=\"\"),0,WYNIK1!$M$8)","v":0}]
[]
[null,null,"Masa odpadów poddanych odzyskowi w tonach [Mg]:",null,null,null,"Masa odpadów poddanych recyklingowi w tonach [Mg]:"]
[]
[null,null,{"$f":"IF(OR(FORMULARZ!$M$26=0,FORMULARZ!$M$26=\"\"),0,FORMULARZ!$M$26)","v":0},null,null,null,{"$f":"IF(OR(FORMULARZ!$N$26=0,FORMULARZ!$N$26=\"\"),0,FORMULARZ!$N$26)","v":0}]
[]
[null,null,"Wymagany poziom odzysku [%]:",null,null,null,"Wymagany poziom recyklingu [%]:"]
[]
[null,null,50,null,null,null,35]
[]
[null,null,"Osiągnięty poziom odzysku [%]:",null,null,null,"Osiągnięty poziom recyklingu [%]:"]
[]
[null,null,{"$f":"IF(OR(WYNIK1!$W$8=0,WYNIK1!$W$8=\"\"),0,WYNIK1!$W$8)","v":0},null,null,null,{"$f":"IF(OR(WYNIK1!$X$8=0,WYNIK1!$X$8=\"\"),0,WYNIK1!$X$8)","v":0}]
[]
[null,null,"2. PREPARATY SMAROWE, DODATKI, ŚRODKI ZAPOBIEGAJĄCE ZAMARZANIU",null,null,null,null,null,null,null,null,null,{"$f":"IF(SUM(C49,G49)=0,\"NIE\",\"TAK\")","v":"NIE"}]
[]
[]
[null,null,"Masa wprowadzonych na terytorium kraju produktów ogółem w tonach [Mg]:"]
[]
[null,null,"w danym roku kalendarzowym:",null,null,null,"w roku poprzedzającym dany rok kalendarzowy:"]
[]
[null,null,{"$f":"IF(OR(WYNIK1!$P$9=0,WYNIK1!$P$9=\"\"),0,WYNIK1!$P$9)","v":0},null,null,null,{"$f":"IF(OR(WYNIK1!$M$9=0,WYNIK1!$M$9=\"\"),0,WYNIK1!$M$9)","v":0}]
[]
[null,null,"Masa wprowadzonych na terytorium kraju produktów podlegających obowiązkowi odzysku w tonach [Mg]:"]
[]
[null,null,"w danym roku kalendarzowym:",null,null,null,"w roku poprzedzającym dany rok kalendarzowy:"]
[]
[null,null,{"$f":"IF(OR(WYNIK1!$P$9=0,WYNIK1!$P$9=\"\"),0,WYNIK1!$P$9)","v":0},null,null,null,{"$f":"IF(OR(WYNIK1!$M$9=0,WYNIK1!$M$9=\"\"),0,WYNIK1!$M$9)","v":0}]
[]
[null,null,"Masa wprowadzonych na terytorium kraju produktów podlegających obowiązkowi recyklingu w tonach [Mg]:"]
[]
[null,null,"w danym roku kalendarzowym:",null,null,null,"w roku poprzedzającym dany rok kalendarzowy:"]
[]
[null,null,{"$f":"IF(OR(WYNIK1!$P$9=0,WYNIK1!$P$9=\"\"),0,WYNIK1!$P$9)","v":0},null,null,null,{"$f":"IF(OR(WYNIK1!$M$9=0,WYNIK1!$M$9=\"\"),0,WYNIK1!$M$9)","v":0}]
[]
[null,null,"Masa odpadów poddanych odzyskowi w tonach [Mg]:",null,null,null,"Masa odpadów poddanych recyklingowi w tonach [Mg]:"]
[]
[null,null,{"$f":"IF(OR(FORMULARZ!$M$27=0,FORMULARZ!$M$27=\"\"),0,FORMULARZ!$M$27)","v":0},null,null,null,{"$f":"IF(OR(FORMULARZ!$N$27=0,FORMULARZ!$N$27=\"\"),0,FORMULARZ!$N$27)","v":0}]
[]
[null,null,"Wymagany poziom odzysku [%]:",null,null,null,"Wymagany poziom recyklingu [%]:"]
[]
[null,null,50,null,null,null,35]
[]
[null,null,"Osiągnięty poziom odzysku [%]:",null,null,null,"Osiągnięty poziom recyklingu [%]:"]
[]
[null,null,{"$f":"IF(OR(WYNIK1!$W$9=0,WYNIK1!$W$9=\"\"),0,WYNIK1!$W$9)","v":0},null,null,null,{"$f":"IF(OR(WYNIK1!$X$9=0,WYNIK1!$X$9=\"\"),0,WYNIK1!$X$9)","v":0}]
[]
[null,null,"3. OPONY PNEUMATYCZNE Z GUMY, NOWE, W RODZAJU STOSOWANYCH W SAMOCHODACH OSOBOWYCH",null,null,null,null,null,null,null,null,null,{"$f":"IF(SUM(C82,G82)=0,\"NIE\",\"TAK\")","v":"NIE"}]
[]
[]
[null,null,"Masa wprowadzonych na terytorium kraju produktów ogółem w tonach [Mg]:"]
[]
[null,null,"w danym roku kalendarzowym:",null,null,null,"w roku poprzedzającym dany rok kalendarzowy:"]
[]
[null,null,{"$f":"IF(OR(WYNIK1!$P$11=0,WYNIK1!$P$11=\"\"),0,WYNIK1!$P$11)","v":0},null,null,null,{"$f":"IF(OR(WYNIK1!$M$11=0,WYNIK1!$M$11=\"\"),0,WYNIK1!$M$11)","v":0}]
[]
[null,null,"Masa wprowadzonych na terytorium kraju produktów podlegających obowiązkowi odzysku w tonach [Mg]:"]
[]
[null,null,"w danym roku kalendarzowym:",null,null,null,"w roku poprzedzającym dany rok kalendarzowy:"]
[]
[null,null,{"$f":"IF(OR(WYNIK1!$P$11=0,WYNIK1!$P$11=\"\"),0,WYNIK1!$P$11)","v":0},null,null,null,{"$f":"IF(OR(WYNIK1!$M$11=0,WYNIK1!$M$11=\"\"),0,WYNIK1!$M$11)","v":0}]
[]
[null,null,"Masa wprowadzonych na terytorium kraju produktów podlegających obowiązkowi recyklingu w tonach [Mg]:"]
[]
[null,null,"w danym roku kalendarzowym:",null,null,null,"w roku poprzedzającym dany rok kalendarzowy:"]
[]
[null,null,{"$f":"IF(OR(WYNIK1!$P$11=0,WYNIK1!$P$11=\"\"),0,WYNIK1!$P$11)","v":0},null,null,null,{"$f":"IF(OR(WYNIK1!$M$11=0,WYNIK1!$M$11=\"\"),0,WYNIK1!$M$11)","v":0}]
[]
[null,null,"Masa odpadów poddanych odzyskowi w tonach [Mg]:",null,null,null,"Masa odpadów poddanych recyklingowi w tonach [Mg]:"]
[]
[null,null,{"$f":"IF(OR(FORMULARZ!$M$29=0,FORMULARZ!$M$29=\"\"),0,FORMULARZ!$M$29)","v":0},null,null,null,{"$f":"IF(OR(FORMULARZ!$N$29=0,FORMULARZ!$N$29=\"\"),0,FORMULARZ!$N$29)","v":0}]
[]
[null,null,"Wymagany poziom odzysku [%]:",null,null,null,"Wymagany poziom recyklingu [%]:"]
[]
[null,null,75,null,null,null,15]
[]
[null,null,"Osiągnięty poziom odzysku [%]:",null,null,null,"Osiągnięty poziom recyklingu [%]:"]
[]
[null,null,{"$f":"IF(OR(WYNIK1!$W$11=0,WYNIK1!$W$11=\"\"),0,WYNIK1!$W$11)","v":0},null,null,null,{"$f":"IF(OR(WYNIK1!$X$11=0,WYNIK1!$X$11=\"\"),0,WYNIK1!$X$11)","v":0}]
[]
[null,null,"4.OPONY PNEUMATYCZNE Z GUMY, NOWE, W RODZAJU STOSOWANYCH W MOTOCYKLACH I ROWERACH",null,null,null,null,null,null,null,null,null,{"$f":"IF(SUM(C115,G115)=0,\"NIE\",\"TAK\")","v":"NIE"}]
[]
[]
[null,null,"Masa wprowadzonych na terytorium kraju produktów ogółem w tonach [Mg]:"]
[]
[null,null,"w danym roku kalendarzowym:",null,null,null,"w roku poprzedzającym dany rok kalendarzowy:"]
[]
[null,null,{"$f":"IF(OR(WYNIK1!$P$12=0,WYNIK1!$P$12=\"\"),0,WYNIK1!$P$12)","v":0},null,null,null,{"$f":"IF(OR(WYNIK1!$M$12=0,WYNIK1!$M$12=\"\"),0,WYNIK1!$M$12)","v":0}]
[]
[null,null,"Masa wprowadzonych na terytorium kraju produktów podlegających obowiązkowi odzysku w tonach [Mg]:"]
[]
[null,null,"w danym roku kalendarzowym:",null,null,null,"w roku poprzedzającym dany rok kalendarzowy:"]
[]
[null,null,{"$f":"IF(OR(WYNIK1!$P$12=0,WYNIK1!$P$12=\"\"),0,WYNIK1!$P$12)","v":0},null,null,null,{"$f":"IF(OR(WYNIK1!$M$12=0,WYNIK1!$M$12=\"\"),0,WYNIK1!$M$12)","v":0}]
[]
[null,null,"Masa wprowadzonych na terytorium kraju produktów podlegających obowiązkowi recyklingu w tonach [Mg]:"]
[]
[null,null,"w danym roku kalendarzowym:",null,null,null,"w roku poprzedzającym dany rok kalendarzowy:"]
[]
[null,null,{"$f":"IF(OR(WYNIK1!$P$12=0,WYNIK1!$P$12=\"\"),0,WYNIK1!$P$12)","v":0},null,null,null,{"$f":"IF(OR(WYNIK1!$M$12=0,WYNIK1!$M$12=\"\"),0,WYNIK1!$M$12)","v":0}]
[]
[null,null,"Masa odpadów poddanych odzyskowi w tonach [Mg]:",null,null,null,"Masa odpadów poddanych recyklingowi w tonach [Mg]:"]
[]
[null,null,{"$f":"IF(OR(FORMULARZ!$M$30=0,FORMULARZ!$M$30=\"\"),0,FORMULARZ!$M$30)","v":0},null,null,null,{"$f":"IF(OR(FORMULARZ!$N$30=0,FORMULARZ!$N$30=\"\"),0,FORMULARZ!$N$30)","v":0}]
[]
[null,null,"Wymagany poziom odzysku [%]:",null,null,null,"Wymagany poziom recyklingu [%]:"]
[]
[null,null,75,null,null,null,15]
[]
[null,null,"Osiągnięty poziom odzysku [%]:",null,null,null,"Osiągnięty poziom recyklingu [%]:"]
[]
[null,null,{"$f":"IF(OR(WYNIK1!$W$12=0,WYNIK1!$W$12=\"\"),0,WYNIK1!$W$12)","v":0},null,null,null,{"$f":"IF(OR(WYNIK1!$X$12=0,WYNIK1!$X$12=\"\"),0,WYNIK1!$X$12)","v":0}]
[]
[null,null,"5. OPONY PNEUMATYCZNE Z GUMY, NOWE, W RODZAJU STOSOWANYCH W AUTOBUSACH, SAMOCHODACH CIĘŻAROWYCH I SAMOLOTACH",null,null,null,null,null,null,null,null,null,{"$f":"IF(SUM(C148,G148)=0,\"NIE\",\"TAK\")","v":"NIE"}]
[]
[]
[null,null,"Masa wprowadzonych na terytorium kraju produktów ogółem w tonach [Mg]:"]
[]
[null,null,"w danym roku kalendarzowym:",null,null,null,"w roku poprzedzającym dany rok kalendarzowy:"]
[]
[null,null,{"$f":"IF(OR(WYNIK1!$P$13=0,WYNIK1!$P$13=\"\"),0,WYNIK1!$P$13)","v":0},null,null,null,{"$f":"IF(OR(WYNIK1!$M$13=0,WYNIK1!$M$13=\"\"),0,WYNIK1!$M$13)","v":0}]
[]
[null,null,"Masa wprowadzonych na terytorium kraju produktów podlegających obowiązkowi odzysku w tonach [Mg]:"]
[]
[null,null,"w danym roku kalendarzowym:",null,null,null,"w roku poprzedzającym dany rok kalendarzowy:"]
[]
[null,null,{"$f":"IF(OR(WYNIK1!$P$13=0,WYNIK1!$P$13=\"\"),0,WYNIK1!$P$13)","v":0},null,null,null,{"$f":"IF(OR(WYNIK1!$M$13=0,WYNIK1!$M$13=\"\"),0,WYNIK1!$M$13)","v":0}]
[]
[null,null,"Masa wprowadzonych na terytorium kraju produktów podlegających obowiązkowi recyklingu w tonach [Mg]:"]
[]
[null,null,"w danym roku kalendarzowym:",null,null,null,"w roku poprzedzającym dany rok kalendarzowy:"]
[]
[null,null,{"$f":"IF(OR(WYNIK1!$P$13=0,WYNIK1!$P$13=\"\"),0,WYNIK1!$P$13)","v":0},null,null,null,{"$f":"IF(OR(WYNIK1!$M$13=0,WYNIK1!$M$13=\"\"),0,WYNIK1!$M$13)","v":0}]
[]
[null,null,"Masa odpadów poddanych odzyskowi w tonach [Mg]:",null,null,null,"Masa odpadów poddanych recyklingowi w tonach [Mg]:"]
[]
[null,null,{"$f":"IF(OR(FORMULARZ!$M$31=0,FORMULARZ!$M$31=\"\"),0,FORMULARZ!$M$31)","v":0},null,null,null,{"$f":"IF(OR(FORMULARZ!$N$31=0,FORMULARZ!$N$31=\"\"),0,FORMULARZ!$N$31)","v":0}]
[]
[null,null,"Wymagany poziom odzysku [%]:",null,null,null,"Wymagany poziom recyklingu [%]:"]
[]
[null,null,75,null,null,null,15]
[]
[null,null,"Osiągnięty poziom odzysku [%]:",null,null,null,"Osiągnięty poziom recyklingu [%]:"]
[]
[null,null,{"$f":"IF(OR(WYNIK1!$W$13=0,WYNIK1!$W$13=\"\"),0,WYNIK1!$W$13)","v":0},null,null,null,{"$f":"IF(OR(WYNIK1!$X$13=0,WYNIK1!$X$13=\"\"),0,WYNIK1!$X$13)","v":0}]
[]
[null,null,"6. OPONY PNEUMATYCZNE BIEŻNIKOWANE Z GUMY",null,null,null,null,null,null,null,null,null,{"$f":"IF(SUM(C181,G181)=0,\"NIE\",\"TAK\")","v":"NIE"}]
[]
[]
[null,null,"Masa wprowadzonych na terytorium kraju produktów ogółem w tonach [Mg]:"]
[]
[null,null,"w danym roku kalendarzowym:",null,null,null,"w roku poprzedzającym dany rok kalendarzowy:"]
[]
[null,null,{"$f":"IF(OR(WYNIK1!$P$14=0,WYNIK1!$P$14=\"\"),0,WYNIK1!$P$14)","v":0},null,null,null,{"$f":"IF(OR(WYNIK1!$M$14=0,WYNIK1!$M$14=\"\"),0,WYNIK1!$M$14)","v":0}]
[]
[null,null,"Masa wprowadzonych na terytorium kraju produktów podlegających obowiązkowi odzysku w tonach [Mg]:"]
[]
[null,null,"w danym roku kalendarzowym:",null,null,null,"w roku poprzedzającym dany rok kalendarzowy:"]
[]
[null,null,{"$f":"IF(OR(WYNIK1!$P$14=0,WYNIK1!$P$14=\"\"),0,WYNIK1!$P$14)","v":0},null,null,null,{"$f":"IF(OR(WYNIK1!$M$14=0,WYNIK1!$M$14=\"\"),0,WYNIK1!$M$14)","v":0}]
[]
[null,null,"Masa wprowadzonych na terytorium kraju produktów podlegających obowiązkowi recyklingu w tonach [Mg]:"]
[]
[null,null,"w danym roku kalendarzowym:",null,null,null,"w roku poprzedzającym dany rok kalendarzowy:"]
[]
[null,null,{"$f":"IF(OR(WYNIK1!$P$14=0,WYNIK1!$P$14=\"\"),0,WYNIK1!$P$14)","v":0},null,null,null,{"$f":"IF(OR(WYNIK1!$M$14=0,WYNIK1!$M$14=\"\"),0,WYNIK1!$M$14)","v":0}]
[]
[null,null,"Masa odpadów poddanych odzyskowi w tonach [Mg]:",null,null,null,"Masa odpadów poddanych recyklingowi w tonach [Mg]:"]
[]
[null,null,{"$f":"IF(OR(FORMULARZ!$M$32=0,FORMULARZ!$M$32=\"\"),0,FORMULARZ!$M$32)","v":0},null,null,null,{"$f":"IF(OR(FORMULARZ!$N$32=0,FORMULARZ!$N$32=\"\"),0,FORMULARZ!$N$32)","v":0}]
[]
[null,null,"Wymagany poziom odzysku [%]:",null,null,null,"Wymagany poziom recyklingu [%]:"]
[]
[null,null,75,null,null,null,15]
[]
[null,null,"Osiągnięty poziom odzysku [%]:",null,null,null,"Osiągnięty poziom recyklingu [%]:"]
[]
[null,null,{"$f":"IF(OR(WYNIK1!$W$14=0,WYNIK1!$W$14=\"\"),0,WYNIK1!$W$14)","v":0},null,null,null,{"$f":"IF(OR(WYNIK1!$X$14=0,WYNIK1!$X$14=\"\"),0,WYNIK1!$X$14)","v":0}]
[]
[null,null,"7. OPONY PNEUMATYCZNE Z GUMY, NOWE, W RODZAJU STOSOWANYCH W URZĄDZENIACH I MASZYNACH ROLNICZYCH, POZOSTAŁE NOWE OPONY PNEUMATYCZNE Z GUMY",null,null,null,null,null,null,null,null,null,{"$f":"IF(SUM(C214,G214)=0,\"NIE\",\"TAK\")","v":"NIE"}]
[]
[]
[null,null,"Masa wprowadzonych na terytorium kraju produktów ogółem w tonach [Mg]:"]
[]
[null,null,"w danym roku kalendarzowym:",null,null,null,"w roku poprzedzającym dany rok kalendarzowy:"]
[]
[null,null,{"$f":"IF(OR(WYNIK1!$P$15=0,WYNIK1!$P$15=\"\"),0,WYNIK1!$P$15)","v":0},null,null,null,{"$f":"IF(OR(WYNIK1!$M$15=0,WYNIK1!$M$15=\"\"),0,WYNIK1!$M$15)","v":0}]
[]
[null,null,"Masa wprowadzonych na terytorium kraju produktów podlegających obowiązkowi odzysku w tonach [Mg]:"]
[]
[null,null,"w danym roku kalendarzowym:",null,null,null,"w roku poprzedzającym dany rok kalendarzowy:"]
[]
[null,null,{"$f":"IF(OR(WYNIK1!$P$15=0,WYNIK1!$P$15=\"\"),0,WYNIK1!$P$15)","v":0},null,null,null,{"$f":"IF(OR(WYNIK1!$M$15=0,WYNIK1!$M$15=\"\"),0,WYNIK1!$M$15)","v":0}]
[]
[null,null,"Masa wprowadzonych na terytorium kraju produktów podlegających obowiązkowi recyklingu w tonach [Mg]:"]
[]
[null,null,"w danym roku kalendarzowym:",null,null,null,"w roku poprzedzającym dany rok kalendarzowy:"]
[]
[null,null,{"$f":"IF(OR(WYNIK1!$P$15=0,WYNIK1!$P$15=\"\"),0,WYNIK1!$P$15)","v":0},null,null,null,{"$f":"IF(OR(WYNIK1!$M$15=0,WYNIK1!$M$15=\"\"),0,WYNIK1!$M$15)","v":0}]
[]
[null,null,"Masa odpadów poddanych odzyskowi w tonach [Mg]:",null,null,null,"Masa odpadów poddanych recyklingowi w tonach [Mg]:"]
[]
[null,null,{"$f":"IF(OR(FORMULARZ!$M$33=0,FORMULARZ!$M$33=\"\"),0,FORMULARZ!$M$33)","v":0},null,null,null,{"$f":"IF(OR(FORMULARZ!$N$33=0,FORMULARZ!$N$33=\"\"),0,FORMULARZ!$N$33)","v":0}]
[]
[null,null,"Wymagany poziom odzysku [%]:",null,null,null,"Wymagany poziom recyklingu [%]:"]
[]
[null,null,75,null,null,null,15]
[]
[null,null,"Osiągnięty poziom odzysku [%]:",null,null,null,"Osiągnięty poziom recyklingu [%]:"]
[]
[null,null,{"$f":"IF(OR(WYNIK1!$W$15=0,WYNIK1!$W$15=\"\"),0,WYNIK1!$W$15)","v":0},null,null,null,{"$f":"IF(OR(WYNIK1!$X$15=0,WYNIK1!$X$15=\"\"),0,WYNIK1!$X$15)","v":0}]
[]
[null,null,"8. OPONY PNEUMATYCZNE, UŻYWANE",null,null,null,null,null,null,null,null,null,{"$f":"IF(SUM(C246,G246)=0,\"NIE\",\"TAK\")","v":"NIE"}]
[]
[null,null,"Masa wprowadzonych na terytorium kraju produktów ogółem w tonach [Mg]:"]
[]
[null,null,"w danym roku kalendarzowym:",null,null,null,"w roku poprzedzającym dany rok kalendarzowy:"]
[]
[null,null,{"$f":"IF(OR(WYNIK1!$P$16=0,WYNIK1!$P$16=\"\"),0,WYNIK1!$P$16)","v":0},null,null,null,{"$f":"IF(OR(WYNIK1!$M$16=0,WYNIK1!$M$16=\"\"),0,WYNIK1!$M$16)","v":0}]
[]
[null,null,"Masa wprowadzonych na terytorium kraju produktów podlegających obowiązkowi odzysku w tonach [Mg]:"]
[]
[null,null,"w danym roku kalendarzowym:",null,null,null,"w roku poprzedzającym dany rok kalendarzowy:"]
[]
[null,null,{"$f":"IF(OR(WYNIK1!$P$16=0,WYNIK1!$P$16=\"\"),0,WYNIK1!$P$16)","v":0},null,null,null,{"$f":"IF(OR(WYNIK1!$M$16=0,WYNIK1!$M$16=\"\"),0,WYNIK1!$M$16)","v":0}]
[]
[null,null,"Masa wprowadzonych na terytorium kraju produktów podlegających obowiązkowi recyklingu w tonach [Mg]:"]
[]
[null,null,"w danym roku kalendarzowym:",null,null,null,"w roku poprzedzającym dany rok kalendarzowy:"]
[]
[null,null,{"$f":"IF(OR(WYNIK1!$P$16=0,WYNIK1!$P$16=\"\"),0,WYNIK1!$P$16)","v":0},null,null,null,{"$f":"IF(OR(WYNIK1!$M$16=0,WYNIK1!$M$16=\"\"),0,WYNIK1!$M$16)","v":0}]
[]
[null,null,"Masa odpadów poddanych odzyskowi w tonach [Mg]:",null,null,null,"Masa odpadów poddanych recyklingowi w tonach [Mg]:"]
[]
[null,null,{"$f":"IF(OR(FORMULARZ!$M$34=0,FORMULARZ!$M$34=\"\"),0,FORMULARZ!$M$34)","v":0},null,null,null,{"$f":"IF(OR(FORMULARZ!$N$34=0,FORMULARZ!$N$34=\"\"),0,FORMULARZ!$N$34)","v":0}]
[]
[null,null,"Wymagany poziom odzysku [%]:",null,null,null,"Wymagany poziom recyklingu [%]:"]
[]
[null,null,75,null,null,null,15]
[]
[null,null,"Osiągnięty poziom odzysku [%]:",null,null,null,"Osiągnięty poziom recyklingu [%]:"]
[]
[null,null,{"$f":"IF(OR(WYNIK1!$W$16=0,WYNIK1!$W$16=\"\"),0,WYNIK1!$W$16)","v":0},null,null,null,{"$f":"IF(OR(WYNIK1!$X$16=0,WYNIK1!$X$16=\"\"),0,WYNIK1!$X$16)","v":0}]
[]
[]
[null,null,"DZIAŁ III TABELA 2. INFORMACJA O WYSOKOŚCI NALEŻNEJ OPŁATY PRODUKTOWEJ"]
[]
[null,null,"Rodzaj produktu, z którego powstał odpad"]
[]
[null,null,"1. OLEJE SMAROWE OTRZYMANE Z ROPY NAFTOWEJ, PREPARATY Z CIĘŻKICH FRAKCJI, GDZIE INDZIEJ NIESKLASYFIKOWANE",null,null,null,null,null,null,null,null,null,{"$f":"IF(C285=0,\"NIE\",\"TAK\")","v":"NIE"}]
[]
[null,null,"Wysokość należnej opłaty produktowej dla odzysku [zł]:",null,null,null,"Wysokość należnej opłaty produktowej dla recyklingu [zł]:"]
[]
[null,null,{"$f":"IF(OR(WYNIK1!$AD$8=0,WYNIK1!$AD$8=\"\"),0,WYNIK1!$AD$8)","v":0},null,null,null,{"$f":"IF(OR(WYNIK1!$AF$8=0,WYNIK1!$AF$8=\"\"),0,WYNIK1!$AF$8)","v":0}]
[]
[null,null,"Wysokość należnej opłaty produktowej ogółem [zł]:"]
[]
[null,null,{"$f":"SUM(C281,G281)","v":0}]
[]
[null,null,"2. PREPARATY SMAROWE, DODATKI, ŚRODKI ZAPOBIEGAJĄCE ZAMARZANIU",null,null,null,null,null,null,null,null,null,{"$f":"IF(C295=0,\"NIE\",\"TAK\")","v":"NIE"}]
[]
[null,null,"Wysokość należnej opłaty produktowej dla odzysku [zł]:",null,null,null,"Wysokość należnej opłaty produktowej dla recyklingu [zł]:"]
[]
[null,null,{"$f":"IF(OR(WYNIK1!$AD$9=0,WYNIK1!$AD$9=\"\"),0,WYNIK1!$AD$9)","v":0},null,null,null,{"$f":"IF(OR(WYNIK1!$AF$9=0,WYNIK1!$AF$9=\"\"),0,WYNIK1!$AF$9)","v":0}]
[]
[null,null,"Wysokość należnej opłaty produktowej ogółem [zł]:"]
[]
[null,null,{"$f":"SUM(C291,G291)","v":0}]
[]
[null,null,"3. OPONY PNEUMATYCZNE Z GUMY, NOWE, W RODZAJU STOOSOWANYCH W SAMOCHODACH OSOBOWYCH",null,null,null,null,null,null,null,null,null,{"$f":"IF(C305=0,\"NIE\",\"TAK\")","v":"NIE"}]
[]
[null,null,"Wysokość należnej opłaty produktowej dla odzysku [zł]:",null,null,null,"Wysokość należnej opłaty produktowej dla recyklingu [zł]:"]
[]
[null,null,{"$f":"IF(OR(WYNIK1!$AD$11=0,WYNIK1!$AD$11=\"\"),0,WYNIK1!$AD$11)","v":0},null,null,null,{"$f":"IF(OR(WYNIK1!$AF$11=0,WYNIK1!$AF$11=\"\"),0,WYNIK1!$AF$11)","v":0}]
[]
[null,null,"Wysokość należnej opłaty produktowej ogółem [zł]:"]
[]
[null,null,{"$f":"SUM(C301,G301)","v":0}]
[]
[null,null,"4. OPONY PNEUMATYCZNE Z GUMY, NOWE, W RODZAJU STOSOWANYCH W MOTOCYKLACH I ROWERACH",null,null,null,null,null,null,null,null,null,{"$f":"IF(C315=0,\"NIE\",\"TAK\")","v":"NIE"}]
[]
[null,null,"Wysokość należnej opłaty produktowej dla odzysku [zł]:",null,null,null,"Wysokość należnej opłaty produktowej dla recyklingu [zł]:"]
[]
[null,null,{"$f":"IF(OR(WYNIK1!$AD$12=0,WYNIK1!$AD$12=\"\"),0,WYNIK1!$AD$12)","v":0},null,null,null,{"$f":"IF(OR(WYNIK1!$AF$12=0,WYNIK1!$AF$12=\"\"),0,WYNIK1!$AF$12)","v":0}]
[]
[null,null,"Wysokość należnej opłaty produktowej ogółem [zł]:"]
[]
[null,null,{"$f":"SUM(C311,G311)","v":0}]
[]
[null,null,"5. OPONY PNEUMATYCZNE Z GUMY, NOWE, W RODZAJU STOSOWANYCH W AUTOBUSACH, SAMOCHODACH CIĘŻAROWYCH I SAMOLOTACH",null,null,null,null,null,null,null,null,null,{"$f":"IF(C325=0,\"NIE\",\"TAK\")","v":"NIE"}]
[]
[null,null,"Wysokość należnej opłaty produktowej dla odzysku [zł]:",null,null,null,"Wysokość należnej opłaty produktowej dla recyklingu [zł]:"]
[]
[null,null,{"$f":"IF(OR(WYNIK1!$AD$13=0,WYNIK1!$AD$13=\"\"),0,WYNIK1!$AD$13)","v":0},null,null,null,{"$f":"IF(OR(WYNIK1!$AF$13=0,WYNIK1!$AF$13=\"\"),0,WYNIK1!$AF$13)","v":0}]
[]
[null,null,"Wysokość należnej opłaty produktowej ogółem [zł]:"]
[]
[null,null,{"$f":"SUM(C321,G321)","v":0}]
[]
[null,null,"6. OPONY PNEUMATYCZNE BIEŻNIKOWANE Z GUMY",null,null,null,null,null,null,null,null,null,{"$f":"IF(C335=0,\"NIE\",\"TAK\")","v":"NIE"}]
[]
[null,null,"Wysokość należnej opłaty produktowej dla odzysku [zł]:",null,null,null,"Wysokość należnej opłaty produktowej dla recyklingu [zł]:"]
[]
[null,null,{"$f":"IF(OR(WYNIK1!$AD$14=0,WYNIK1!$AD$14=\"\"),0,WYNIK1!$AD$14)","v":0},null,null,null,{"$f":"IF(OR(WYNIK1!$AF$14=0,WYNIK1!$AF$14=\"\"),0,WYNIK1!$AF$14)","v":0}]
[]
[null,null,"Wysokość należnej opłaty produktowej ogółem [zł]:"]
[]
[null,null,{"$f":"SUM(C331,G331)","v":0}]
[]
[null,null,"7. OPONY PNEUMATYCZNE Z GUMY, NOWE, W RODZAJU STOSOWANYCH W URZĄDZENIACH I MASZYNACH ROLNICZYCH, POZOSTAŁE NOWE OPONY PNEUMATYCZNE Z GUMY",null,null,null,null,null,null,null,null,null,{"$f":"IF(C345=0,\"NIE\",\"TAK\")","v":"NIE"}]
[]
[null,null,"Wysokość należnej opłaty produktowej dla odzysku [zł]:",null,null,null,"Wysokość należnej opłaty produktowej dla recyklingu [zł]:"]
[]
[null,null,{"$f":"IF(OR(WYNIK1!$AD$15=0,WYNIK1!$AD$15=\"\"),0,WYNIK1!$AD$15)","v":0},null,null,null,{"$f":"IF(OR(WYNIK1!$AF$15=0,WYNIK1!$AF$15=\"\"),0,WYNIK1!$AF$15)","v":0}]
[]
[null,null,"Wysokość należnej opłaty produktowej ogółem [zł]:"]
[]
[null,null,{"$f":"SUM(C341,G341)","v":0}]
[]
[null,null,"8. OPONY PNEUMATYCZNE, UŻYWANE",null,null,null,null,null,null,null,null,null,{"$f":"IF(C355=0,\"NIE\",\"TAK\")","v":"NIE"}]
[]
[null,null,"Wysokość należnej opłaty produktowej dla odzysku [zł]:",null,null,null,"Wysokość należnej opłaty produktowej dla recyklingu [zł]:"]
[]
[null,null,{"$f":"IF(OR(WYNIK1!$AD$16=0,WYNIK1!$AD$16=\"\"),0,WYNIK1!$AD$16)","v":0},null,null,null,{"$f":"IF(OR(WYNIK1!$AF$16=0,WYNIK1!$AF$16=\"\"),0,WYNIK1!$AF$16)","v":0}]
[]
[null,null,"Wysokość należnej opłaty produktowej ogółem [zł]:"]
[]
[null,null,{"$f":"SUM(C351,G351)","v":0}]
[]
[null,null,"Łączna opłata produktowa [zł]",null,null,null,null,null,null,null,null,{"$f":"ROUND(SUM(C285,C295,C305,C315,C325,C335,C345,C355),0)","v":0}]
[]
[null,null,{"$f":"IF(L357<100,\"NIE WNOSI SIĘ OPŁATY PRODUKTOWEJ, KTÓREJ WYSOKOŚĆ NIE PRZEKRACZA 100 ZŁ (art. 12 ust. 5 ustawy).\",\"\")","v":"NIE WNOSI SIĘ OPŁATY PRODUKTOWEJ, KTÓREJ WYSOKOŚĆ NIE PRZEKRACZA 100 ZŁ (art. 12 ust. 5 ustawy)."}]